bitfinex-derivatives/quotes_BTCF0:USTF0_20240814
["timestamp","ask_amount","ask_price","bid_price","bid_amount"]
[1723659669970,0.69705259,59344.0,59339.0,0.084242]
[1723659670184,0.44459738,59344.0,59339.0,0.085242]
[1723659670486,0.25272649,59342.0,59340.0,0.084241]
[1723659670678,0.25272649,59343.0,59341.0,0.08424]
[1723659670875,0.3608,59344.0,59341.0,0.08424]
[1723659671075,0.44459738,59344.0,59338.0,0.001]
[1723659671282,0.44459738,59344.0,59338.0,0.002]
[1723659671283,0.3378134,59343.0,59338.0,0.002]
[1723659671586,0.084238,59342.0,59338.0,0.002]
[1723659672084,0.25165101,59341.0,59338.0,0.001]
[1723659672284,0.25165101,59341.0,59339.0,0.001]
[1723659672884,0.084241,59340.0,59339.0,0.001]
[1723659673181,0.35983838,59340.0,59339.0,0.001]
[1723659673380,0.084243,59339.0,59338.0,0.001]
[1723659673570,0.084243,59339.0,59327.0,0.23608]
[1723659673571,0.44417631,59339.0,59327.0,0.23608]
[1723659673770,0.15095296,59333.0,59330.0,0.084255]
[1723659673972,0.15095296,59333.0,59327.0,0.23608]
[1723659673973,0.06670096,59331.0,59327.0,0.23608]
[1723659674173,0.42750096,59328.0,59327.0,0.23608]
[1723659674384,0.3608,59328.0,59327.0,0.23608]
[1723659674582,0.3608,59328.0,59327.0,0.32034]
[1723659675188,0.61268809,59328.0,59327.0,0.32034]
[1723659675491,0.61268809,59328.0,59327.0,0.32134]
[1723659675689,0.61268809,59328.0,59327.0,0.23708]
[1723659675990,0.69694609,59328.0,59327.0,0.23708]
[1723659677583,0.084265,59323.0,59322.0,0.00025294]
[1723659677892,0.08426,59327.0,59323.0,0.084265]
[1723659678090,0.084262,59326.0,59324.0,0.084264]
[1723659678392,0.254762,59325.0,59324.0,0.084264]
[1723659678578,0.3509,59325.0,59322.0,0.00025294]
[1723659678780,0.42330952,59325.0,59324.0,0.084264]
[1723659679587,0.42330952,59325.0,59324.0,0.085264]
[1723659679893,0.25280952,59325.0,59324.0,0.085264]
[1723659680196,0.25280952,59325.0,59324.0,0.169528]
[1723659680394,0.25336693,59331.0,59330.0,0.084255]
[1723659680690,0.00025294,59333.0,59330.0,0.896755]
[1723659680891,0.25336693,59332.0,59331.0,0.084254]
[1723659681286,0.00025294,59333.0,59332.0,0.084253]
[1723659681688,0.25246042,59333.0,59332.0,0.084253]
[1723659682889,0.42805056,59333.0,59330.0,0.90132112]
[1723659683095,0.30953116,59332.0,59331.0,0.084254]
[1723659683591,0.14936919,59332.0,59331.0,0.084254]
[1723659683785,0.14036942,59332.0,59331.0,0.224254]
[1723659683995,0.08436584,59332.0,59331.0,0.224254]
[1723659684498,0.21839798,59332.0,59331.0,0.224254]
[1723659684695,0.20066907,59332.0,59331.0,0.224254]
[1723659684889,0.06663693,59332.0,59331.0,0.224254]
[1723659685089,0.06663693,59332.0,59331.0,0.225254]
[1723659685389,0.20066907,59332.0,59331.0,0.14098588]
[1723659685789,0.20066907,59332.0,59331.0,1.04662588]
[1723659685790,0.06663693,59332.0,59331.0,1.04662588]
[1723659686094,0.20066907,59332.0,59331.0,0.14198588]
[1723659686294,0.15959903,59332.0,59331.0,0.14198588]
[1723659686496,0.06663693,59332.0,59331.0,0.14198588]
[1723659686892,0.02730465,59332.0,59331.0,1.04762588]
[1723659687197,0.17813994,59332.0,59331.0,1.04762588]
[1723659687401,0.1203644,59332.0,59331.0,0.64762588]
[1723659687590,0.17813994,59332.0,59331.0,0.64762588]
[1723659687790,0.1203644,59332.0,59331.0,0.64762588]
[1723659688095,0.1065494,59332.0,59331.0,0.64762588]
[1723659688297,0.1065494,59332.0,59331.0,0.14198588]
[1723659688298,0.16432494,59332.0,59331.0,0.14198588]
[1723659688490,0.1065494,59332.0,59331.0,0.14198588]
[1723659688691,0.1065494,59332.0,59331.0,0.086254]
[1723659688887,0.26659797,59332.0,59330.0,0.24882112]
[1723659689087,0.26077431,59331.0,59330.0,0.33183612]
[1723659689295,0.09305975,59331.0,59330.0,0.33183612]
[1723659689601,0.34616807,59331.0,59330.0,0.236]
[1723659689800,0.88366232,59331.0,59330.0,0.236]
[1723659689999,0.88366232,59331.0,59319.0,0.2917]
[1723659690000,1.81504832,59331.0,59317.0,0.084273]
[1723659690296,1.81504832,59331.0,59313.0,0.73650737]
[1723659690297,0.084263,59325.0,59313.0,0.29294]
[1723659690498,0.084263,59325.0,59318.0,0.736771]
[1723659691204,0.084263,59325.0,59319.0,0.08427]
[1723659691502,0.54718,59331.0,59324.0,0.3608]
[1723659691688,0.084255,59330.0,59324.0,0.3608]
[1723659691894,0.25120228,59326.0,59324.0,0.3608]
[1723659692293,0.25120228,59329.0,59324.0,0.3608]
[1723659692791,0.00025294,59333.0,59332.0,0.084252]
[1723659692993,0.00025294,59333.0,59332.0,0.375952]
[1723659693195,0.25393839,59333.0,59332.0,0.375952]
[1723659693394,0.25393839,59333.0,59332.0,0.535952]
[1723659694000,0.21435082,59333.0,59332.0,1.08699558]
[1723659694211,0.084226,59351.0,59332.0,1.08699558]
[1723659694212,0.06716012,59350.0,59345.0,0.084233]
[1723659694406,0.06716012,59352.0,59346.0,0.445032]
[1723659694606,0.25374565,59348.0,59346.0,0.445032]
[1723659695002,0.25374565,59351.0,59344.0,0.2917]
[1723659695003,0.25370932,59352.0,59347.0,0.084231]
[1723659695200,0.3608,59351.0,59344.0,0.2917]
[1723659695505,0.25370932,59347.0,59345.0,0.001]
[1723659695704,0.25370932,59349.0,59345.0,0.001]
[1723659695908,0.3608,59351.0,59345.0,0.001]
[1723659696205,0.25356105,59348.0,59345.0,0.001]
[1723659696505,0.25356105,59348.0,59347.0,0.001]
[1723659696706,0.3608,59351.0,59347.0,0.001]
[1723659697204,0.25291462,59348.0,59347.0,0.001]
[1723659697999,0.3608,59351.0,59347.0,0.002]
[1723659698205,0.2511832,59348.0,59347.0,0.002]
[1723659698504,0.3354132,59348.0,59347.0,0.001]
[1723659698701,0.98971,59348.0,59347.0,0.001]
[1723659698896,1.24122446,59348.0,59347.0,0.001]
[1723659699505,0.33574446,59348.0,59347.0,0.002]
[1723659700507,1.24122446,59348.0,59347.0,0.002]
[1723659702110,1.24122446,59348.0,59347.0,0.001]
[1723659702408,1.24222446,59348.0,59347.0,0.002]
[1723659703198,0.084238,59342.0,59341.0,0.45661418]
[1723659703398,0.084238,59342.0,59341.0,0.36105294]
[1723659703599,0.084244,59338.0,59333.0,0.3608]
[1723659703800,0.25338591,59342.0,59341.0,0.08424]
[1723659704004,0.25250591,59342.0,59341.0,0.08424]
[1723659704510,0.084237,59343.0,59342.0,0.084237]
[1723659704817,0.62312098,59343.0,59337.0,0.10112725]
[1723659705106,0.21846732,59339.0,59338.0,0.084244]
[1723659705316,0.5885135,59339.0,59338.0,0.084244]
[1723659705702,0.37004618,59339.0,59338.0,0.084244]
[1723659706003,0.84097636,59339.0,59338.0,0.084244]
[1723659706308,0.62279625,59339.0,59338.0,0.084244]
[1723659707504,0.62579625,59339.0,59338.0,0.084244]
[1723659707709,0.51110304,59339.0,59338.0,0.084244]
[1723659707912,0.51110304,59339.0,59338.0,0.445044]
[1723659708308,0.62579625,59339.0,59338.0,0.445044]
[1723659709822,0.62579625,59339.0,59338.0,0.3608]
[1723659710412,0.62579625,59339.0,59335.0,0.01163703]
[1723659710413,0.084247,59337.0,59335.0,0.01163703]
[1723659710608,0.084247,59337.0,59336.0,0.3608]
[1723659710809,0.40137425,59337.0,59336.0,0.3608]
[1723659711011,0.90697425,59337.0,59336.0,0.3608]
[1723659711413,0.08425,59334.0,59333.0,0.00025294]
[1723659711711,0.084258,59328.0,59327.0,0.59676]
[1723659711911,0.40138525,59328.0,59327.0,0.3608]
[1723659712115,1.30706525,59328.0,59327.0,0.3608]
[1723659712317,1.68360725,59328.0,59315.0,0.01180947]
[1723659712510,0.084264,59324.0,59315.0,0.3608]
[1723659712812,0.084264,59324.0,59322.0,0.084267]
[1723659712813,0.15146321,59324.0,59322.0,0.084267]
[1723659713016,0.25429994,59323.0,59322.0,0.084267]
[1723659713407,0.25429994,59323.0,59322.0,0.445067]
[1723659714021,0.00025294,59327.0,59326.0,0.084261]
[1723659714515,0.25216521,59327.0,59326.0,0.084261]
[1723659715214,0.25216521,59327.0,59326.0,0.759941]
[1723659716005,0.1831,59340.0,59327.0,0.084259]
[1723659716205,0.23479921,59344.0,59337.0,0.445044]
[1723659716414,0.25162577,59339.0,59337.0,0.445044]
[1723659716912,0.25162577,59342.0,59337.0,0.445044]
[1723659717303,0.25162577,59342.0,59338.0,0.084244]
[1723659717504,0.25162577,59342.0,59340.0,0.084241]
[1723659717709,0.06719921,59343.0,59340.0,0.084241]
[1723659718014,0.06719921,59342.0,59341.0,0.08424]
[1723659718219,0.25115939,59342.0,59341.0,0.08424]
[1723659718413,0.001,59342.0,59341.0,0.08424]
[1723659719419,0.25215939,59342.0,59341.0,0.08424]
[1723659719619,0.001,59342.0,59341.0,0.08424]
[1723659719917,0.32058268,59342.0,59339.0,0.01922303]
[1723659720117,0.31958268,59341.0,59340.0,0.084241]
[1723659720613,0.57348937,59341.0,59340.0,0.085241]
[1723659721919,0.57348937,59341.0,59340.0,0.084241]
[1723659723011,0.47063305,59341.0,59340.0,0.084241]
[1723659723517,0.47063305,59341.0,59340.0,0.085241]
[1723659723720,0.29634338,59341.0,59340.0,0.17781419]
[1723659724020,0.21452032,59341.0,59340.0,0.68337419]
[1723659724517,0.21452032,59341.0,59340.0,0.17781419]
[1723659724719,0.21452032,59341.0,59340.0,1.08337419]
[1723659724919,0.21452032,59341.0,59340.0,1.24337419]
[1723659725118,0.21452032,59341.0,59340.0,0.84337419]
[1723659725623,0.21452032,59341.0,59340.0,1.24337419]
[1723659726012,0.16531997,59341.0,59340.0,1.24337419]
[1723659726610,0.14020997,59341.0,59340.0,1.13507419]
[1723659726822,0.03547459,59341.0,59340.0,1.53507419]
[1723659727418,1e-08,59344.0,59343.0,0.168474]
[1723659727622,1e-08,59344.0,59343.0,0.679274]
[1723659727809,0.25324518,59344.0,59343.0,0.679274]
[1723659728332,0.06712691,59358.0,59350.0,0.084226]
[1723659728621,0.05402691,59366.0,59357.0,0.3608]
[1723659728928,0.08390864,59371.0,59357.0,0.3608]
[1723659728929,0.16810664,59371.0,59365.0,0.084206]
[1723659729121,0.084202,59368.0,59364.0,0.3608]
[1723659729316,0.084213,59360.0,59353.0,0.084221]
[1723659729619,0.3608,59366.0,59353.0,0.084221]
[1723659729620,0.445014,59359.0,59353.0,0.084221]
[1723659729817,0.445014,59359.0,59354.0,0.084221]
[1723659730014,0.69859996,59359.0,59354.0,0.084221]
[1723659730220,0.445014,59359.0,59354.0,0.084221]
[1723659730420,0.3356,59358.0,59354.0,0.084221]
[1723659730624,0.58842975,59358.0,59354.0,0.084221]
[1723659731419,0.084224,59352.0,59351.0,0.00025273]
[1723659731613,0.3608,59352.0,59343.0,0.002]
[1723659731925,0.445031,59347.0,59343.0,0.002]
[1723659732231,0.1712,59351.0,59338.0,0.3608]
[1723659732232,0.1712,59351.0,59340.0,0.01478249]
[1723659732415,0.1712,59351.0,59339.0,0.364]
[1723659732611,0.2517449,59350.0,59348.0,0.084229]
[1723659733014,0.25199763,59351.0,59344.0,0.084235]
[1723659733222,0.33622363,59351.0,59346.0,0.084232]
[1723659733424,0.08447873,59351.0,59347.0,0.084231]
[1723659733718,0.08447873,59351.0,59350.0,0.084227]
[1723659733719,0.00025273,59351.0,59350.0,0.084227]
[1723659734121,0.2523447,59351.0,59350.0,0.084227]
[1723659734621,0.2523447,59351.0,59348.0,0.3608]
[1723659734822,0.2523447,59351.0,59339.0,0.55166238]
[1723659735030,0.19164383,59350.0,59349.0,0.084228]
[1723659735322,0.19164383,59350.0,59349.0,0.445028]
[1723659735528,0.49402167,59350.0,59349.0,0.445028]
[1723659736519,0.49402167,59350.0,59349.0,0.446028]
[1723659737016,0.49376894,59350.0,59349.0,1.796536]
[1723659737227,0.32061079,59350.0,59349.0,1.946536]
[1723659737424,0.06946179,59350.0,59349.0,1.946536]
[1723659737727,0.06946179,59350.0,59349.0,1.16680298]
[1723659738227,0.03030728,59350.0,59349.0,2.17118405]
[1723659738427,0.00025273,59351.0,59349.0,2.08695605]
[1723659738628,0.18420021,59351.0,59350.0,1.06136218]
[1723659738845,0.21149038,59351.0,59350.0,1.63136218]
[1723659739238,0.02729017,59351.0,59350.0,1.63136218]
[1723659739441,0.14082378,59352.0,59351.0,0.50548]
[1723659739634,0.14082378,59352.0,59351.0,1.56955118]
[1723659739836,0.14082378,59352.0,59351.0,1.928035]
[1723659740034,0.16732417,59357.0,59355.0,0.08422]
[1723659740242,0.13385843,59357.0,59356.0,1.24461742]
[1723659740543,0.13378741,59362.0,59361.0,0.168422]
[1723659740746,0.00025273,59366.0,59365.0,0.084206]
[1723659741042,0.00025273,59366.0,59365.0,0.445006]
[1723659741338,0.2512579,59366.0,59365.0,0.529212]
[1723659741535,0.07288313,59382.0,59376.0,0.084189]
[1723659741732,0.084176,59386.0,59381.0,0.3608]
[1723659741935,0.32198999,59382.0,59381.0,0.3608]
[1723659742141,0.87884505,59382.0,59381.0,0.3608]
[1723659742529,0.37364505,59382.0,59381.0,0.26703071]
[1723659742730,0.80811296,59382.0,59381.0,0.26703071]
[1723659743035,0.80811296,59382.0,59377.0,0.084188]
[1723659743036,0.7564579,59382.0,59377.0,0.084188]
[1723659743343,0.2512579,59382.0,59378.0,0.084187]
[1723659743537,0.2512579,59382.0,59379.0,0.084185]
[1723659743729,0.2512579,59382.0,59381.0,0.001]
[1723659744136,0.7564579,59382.0,59381.0,0.001]
[1723659744343,0.7564579,59382.0,59381.0,0.002]
[1723659745147,0.2512579,59382.0,59381.0,0.086183]
[1723659745534,0.7564579,59382.0,59381.0,0.086183]
[1723659745941,0.8406389,59382.0,59381.0,0.001]
[1723659746238,0.8406389,59382.0,59377.0,0.001]
[1723659746239,0.084187,59378.0,59377.0,0.001]
[1723659746448,0.50524,59381.0,59376.0,0.00025273]
[1723659746639,0.084206,59365.0,59356.0,0.3608]
[1723659746839,0.7248,59377.0,59356.0,0.3608]
[1723659746840,0.3608,59366.0,59356.0,0.3608]
[1723659747033,0.25161251,59364.0,59362.0,0.084209]
[1723659747549,0.084207,59364.0,59363.0,0.084208]
[1723659747842,0.25430846,59363.0,59357.0,0.00025273]
[1723659748042,0.25430846,59363.0,59361.0,0.08421]
[1723659748241,0.51571546,59364.0,59361.0,0.08421]
[1723659748444,0.261407,59364.0,59361.0,0.08421]
[1723659748633,0.25316373,59363.0,59361.0,0.08421]
[1723659748946,0.25316373,59363.0,59362.0,0.08521]
[1723659749537,0.25109964,59365.0,59364.0,0.084207]
[1723659750047,0.14736348,59369.0,59364.0,0.21247905]
[1723659750250,0.14736348,59369.0,59366.0,0.08308511]
[1723659750449,0.25428341,59367.0,59366.0,0.16728911]
[1723659750744,0.25428341,59368.0,59367.0,0.084203]
[1723659750952,0.00025273,59369.0,59367.0,0.12826143]
[1723659751141,0.00025273,59369.0,59368.0,0.21246243]
[1723659751652,0.25301298,59369.0,59368.0,0.29550524]
[1723659751943,0.25301298,59369.0,59368.0,0.16724381]
[1723659752144,0.25301298,59369.0,59368.0,0.31339424]
[1723659752345,0.25301298,59369.0,59368.0,0.21247053]
[1723659753249,0.25301298,59369.0,59368.0,0.21347053]
[1723659753448,0.25301298,59369.0,59368.0,0.31439424]
[1723659754046,0.25301298,59369.0,59368.0,0.36958565]
[1723659754353,0.25301298,59369.0,59368.0,0.37058565]
[1723659755651,0.21700981,59369.0,59368.0,0.74588665]
[1723659755951,0.17219515,59369.0,59368.0,0.74588665]
[1723659756257,0.1706,59383.0,59379.0,0.084184]
[1723659756444,0.1706,59383.0,59381.0,0.08303029]
[1723659757047,0.1706,59383.0,59382.0,0.52801129]
[1723659757238,0.00025273,59388.0,59382.0,0.42721775]
[1723659757547,0.00025273,59388.0,59387.0,0.084174]
[1723659757741,0.00025273,59388.0,59387.0,0.0498105]
[1723659757943,0.25348055,59388.0,59387.0,0.0498105]
[1723659758246,0.25348055,59388.0,59386.0,0.0498105]
[1723659758451,0.25348055,59388.0,59386.0,0.15059275]
[1723659758640,0.50516,59387.0,59386.0,0.06641775]
[1723659758840,0.589334,59387.0,59385.0,0.04980109]
[1723659759037,0.50516,59386.0,59385.0,0.04980109]
[1723659759245,0.50516,59386.0,59384.0,0.04980109]
[1723659759440,0.25342828,59386.0,59384.0,0.04980109]
[1723659759654,0.25342828,59386.0,59385.0,0.084177]
[1723659760039,1.15858828,59386.0,59385.0,0.13397809]
[1723659760249,1.15858828,59386.0,59385.0,0.084177]
[1723659760442,0.50516,59386.0,59385.0,0.084177]
[1723659760944,0.25151216,59386.0,59385.0,0.084177]
[1723659761354,0.25151216,59386.0,59383.0,0.06641775]
[1723659761355,0.00025273,59388.0,59387.0,0.084174]
[1723659761550,0.00025273,59388.0,59387.0,0.49475003]
[1723659761849,0.25187512,59388.0,59387.0,0.444974]
[1723659762651,0.25187512,59388.0,59387.0,0.51239175]
[1723659763453,0.25187512,59388.0,59387.0,0.444974]
[1723659763656,0.25187512,59388.0,59387.0,0.51137271]
[1723659763841,0.25187512,59388.0,59387.0,0.51437271]
[1723659764247,0.25187512,59388.0,59387.0,0.51537271]
[1723659764442,0.25187512,59388.0,59387.0,0.448974]
[1723659765048,0.25187512,59388.0,59387.0,0.447974]
[1723659765249,0.25187512,59388.0,59387.0,0.57619639]
[1723659765756,0.3608,59403.0,59402.0,0.084153]
[1723659765943,0.3608,59403.0,59402.0,0.21237539]
[1723659766140,0.3608,59409.0,59408.0,0.084145]
[1723659766341,0.3608,59409.0,59408.0,0.21232441]
[1723659766551,0.61181065,59409.0,59408.0,0.21232441]
[1723659767148,0.25101065,59409.0,59408.0,0.57312441]
[1723659767353,0.25101065,59409.0,59408.0,0.67267484]
[1723659767655,0.00025169,59414.0,59413.0,0.084138]
[1723659767951,0.00025169,59414.0,59411.0,0.08280156]
[1723659768158,0.25376665,59413.0,59410.0,0.08280156]
[1723659768352,0.25376665,59413.0,59409.0,0.16694356]
[1723659768555,0.00025169,59414.0,59409.0,0.08280156]
[1723659768750,0.61393853,59412.0,59410.0,0.06620974]
[1723659769049,0.084146,59407.0,59403.0,0.04992144]
[1723659769249,0.8202,59404.0,59403.0,0.0002525]
[1723659769458,0.084157,59399.0,59398.0,0.04966894]
[1723659769752,0.444957,59399.0,59398.0,0.04966894]
[1723659769953,0.950037,59399.0,59398.0,0.04966894]
[1723659770255,1.350038,59399.0,59398.0,0.084159]
[1723659770453,1.518414,59399.0,59397.0,0.04966894]
[1723659770750,0.084161,59397.0,59395.0,0.06621669]
[1723659770946,0.084161,59397.0,59396.0,0.06621669]
[1723659771151,0.25114643,59396.0,59395.0,0.06621669]
[1723659771353,0.33530743,59396.0,59395.0,0.06621669]
[1723659771553,0.084163,59395.0,59394.0,0.15037969]
[1723659771857,0.084164,59394.0,59393.0,0.0664743]
[1723659772354,0.084164,59394.0,59393.0,0.0844185]
[1723659772355,0.02727833,59394.0,59393.0,0.0844185]
[1723659772657,0.10035268,59395.0,59394.0,0.084164]
[1723659772658,0.0272791,59395.0,59394.0,0.084164]
[1723659772846,0.02727906,59397.0,59395.0,0.084162]
[1723659773048,0.02727906,59396.0,59395.0,0.084162]
[1723659773348,0.3608,59398.0,59395.0,0.084162]
[1723659773349,0.28035825,59397.0,59395.0,0.084162]
[1723659773548,0.28035825,59396.0,59395.0,0.084162]
[1723659773749,0.02727906,59396.0,59395.0,0.084162]
[1723659774051,0.28035825,59397.0,59395.0,0.084162]
[1723659774251,0.31269038,59396.0,59395.0,0.084162]
[1723659774452,0.05977917,59396.0,59395.0,0.084162]
[1723659774644,0.56485917,59396.0,59395.0,0.084162]
[1723659774849,0.90193138,59396.0,59395.0,0.084162]
[1723659775255,0.90193138,59396.0,59393.0,0.0002525]
[1723659775256,0.084164,59395.0,59393.0,0.0002525]
[1723659775562,0.11144306,59394.0,59393.0,0.0002525]
[1723659775751,0.36430459,59394.0,59393.0,0.0002525]
[1723659775952,0.86942459,59394.0,59393.0,0.0844185]
[1723659776156,0.36430459,59394.0,59393.0,0.0844185]
[1723659777258,0.28014059,59394.0,59393.0,0.0844185]
[1723659779356,0.31264043,59394.0,59393.0,0.0844185]
[1723659779662,0.32696678,59394.0,59393.0,0.0844185]
[1723659780158,0.35135188,59394.0,59393.0,0.0844185]
[1723659780362,0.79753911,59394.0,59393.0,0.0002525]
[1723659780753,0.71337511,59394.0,59393.0,0.0002525]
[1723659781062,0.3610525,59402.0,59401.0,0.168308]
[1723659781063,0.0002525,59402.0,59401.0,0.168308]
[1723659781255,0.0002525,59402.0,59401.0,0.57317722]
[1723659781449,0.33842413,59402.0,59401.0,0.12822322]
[1723659782262,0.33842413,59402.0,59401.0,0.21237722]
[1723659782263,0.25427113,59402.0,59401.0,0.21237722]
[1723659782460,0.25427113,59402.0,59401.0,0.21337722]
[1723659782864,0.25427113,59402.0,59401.0,0.21334428]
[1723659783159,0.25427113,59402.0,59401.0,0.39686654]
[1723659783365,0.18780889,59402.0,59401.0,0.29749828]
[1723659783553,0.18780889,59402.0,59401.0,0.21334428]
[1723659784157,0.18780889,59402.0,59401.0,0.41223056]
[1723659784361,0.18780889,59402.0,59401.0,0.56617598]
[1723659785563,0.18780889,59402.0,59401.0,0.65032998]
[1723659785769,0.18780889,59402.0,59401.0,0.56617598]
[1723659787169,0.18780889,59402.0,59401.0,0.2841357]
[1723659788462,0.27196189,59402.0,59401.0,0.13019028]
[1723659788671,0.27196189,59402.0,59401.0,0.21306166]
[1723659788862,0.27196189,59402.0,59401.0,0.002]
[1723659789564,0.27196189,59402.0,59401.0,0.08487138]
[1723659789955,0.27196189,59402.0,59401.0,0.13019969]
[1723659790159,0.22145847,59402.0,59401.0,0.13019969]
[1723659790359,0.22145847,59402.0,59401.0,0.21435369]
[1723659790561,0.22145847,59402.0,59401.0,0.13019969]
[1723659790855,0.13730547,59402.0,59401.0,0.21435369]
[1723659791366,0.13730547,59402.0,59401.0,0.54750958]
[1723659791564,0.13730547,59402.0,59401.0,0.28003797]
[1723659791869,0.13730547,59402.0,59401.0,0.5616701]
[1723659792762,0.13730547,59402.0,59401.0,0.40822838]
[1723659793170,0.13730547,59402.0,59401.0,0.39404441]
[1723659793766,0.13730547,59402.0,59401.0,0.21434441]
[1723659793965,0.13730547,59402.0,59401.0,0.22975086]
[1723659794373,0.13730547,59402.0,59401.0,0.22875086]
[1723659794667,1.12649847,59402.0,59401.0,0.13019041]
[1723659794870,1.12649847,59402.0,59401.0,0.001]
[1723659795085,1.12649847,59402.0,59401.0,0.002]
[1723659795463,0.72649847,59402.0,59401.0,0.002]
[1723659795665,0.74016407,59402.0,59401.0,0.002]
[1723659796875,1.14016407,59402.0,59401.0,0.002]
[1723659797373,0.74016407,59402.0,59401.0,0.002]
[1723659797881,1.2238796,59402.0,59401.0,0.002]
[1723659798271,0.8238796,59402.0,59401.0,0.002]
[1723659798869,1.2238796,59402.0,59401.0,0.002]
[1723659799869,1.14016407,59402.0,59401.0,0.002]
[1723659800170,0.3188396,59402.0,59401.0,0.002]
[1723659800568,0.23512407,59402.0,59401.0,0.002]
[1723659802773,0.23512407,59402.0,59401.0,0.21325442]
[1723659802974,0.23512407,59402.0,59401.0,0.002]
[1723659803173,0.23512407,59402.0,59401.0,0.08504311]
[1723659803389,1.14016407,59402.0,59401.0,0.08504311]
[1723659803676,1.14016407,59402.0,59401.0,0.08404311]
[1723659803977,1.14016407,59402.0,59401.0,0.002]
[1723659804173,1.14016407,59402.0,59401.0,0.08604311]
[1723659805475,1.14016407,59402.0,59401.0,0.08504311]
[1723659805679,1.14016407,59402.0,59401.0,0.21325484]
[1723659807072,1.14016407,59402.0,59401.0,0.21225484]
[1723659807380,0.23512407,59402.0,59401.0,0.12921173]
[1723659807780,0.23512407,59402.0,59401.0,0.13021173]
[1723659808082,0.23512407,59402.0,59401.0,0.21536773]
[1723659808292,0.13730547,59402.0,59401.0,0.21536773]
[1723659808582,0.13730547,59402.0,59401.0,0.21436773]
[1723659809071,0.22145947,59402.0,59401.0,0.13021173]
[1723659809270,0.22145947,59402.0,59401.0,0.2143193]
[1723659809482,0.22145947,59402.0,59401.0,0.13221173]
[1723659809977,0.22145947,59402.0,59401.0,0.21636773]
[1723659809978,0.13730547,59402.0,59401.0,0.21636773]
[1723659810188,0.13730547,59402.0,59401.0,0.11436773]
[1723659810386,0.07837923,59402.0,59401.0,0.086156]
[1723659810678,0.16209476,59402.0,59401.0,0.086156]
[1723659811585,0.07837923,59402.0,59401.0,0.087156]
[1723659811977,0.07837923,59402.0,59401.0,0.10129503]
[1723659812281,0.14554661,59402.0,59401.0,0.10129503]
[1723659813477,0.05036699,59408.0,59405.0,0.08415]
[1723659813682,0.05036699,59413.0,59408.0,0.2909]
[1723659813984,0.25123153,59416.0,59415.0,0.084136]
[1723659814187,0.002,59417.0,59416.0,0.084134]
[1723659814188,0.05233892,59417.0,59416.0,0.084134]
[1723659814681,0.30362646,59417.0,59416.0,0.084134]
[1723659815075,0.25328754,59417.0,59416.0,0.084134]
[1723659815787,0.25328754,59417.0,59412.0,0.444939]
[1723659815989,0.05032809,59414.0,59413.0,0.084138]
[1723659816178,0.05032809,59415.0,59413.0,0.084138]
[1723659816374,0.002,59417.0,59414.0,0.084137]
[1723659816882,0.002,59417.0,59415.0,0.084136]
[1723659816883,0.25384663,59416.0,59415.0,0.084136]
[1723659817596,0.25384663,59416.0,59415.0,0.15059022]
[1723659819194,0.25384663,59416.0,59415.0,0.084136]
[1723659820677,0.90554663,59416.0,59411.0,0.06663591]
[1723659820886,0.08414,59412.0,59411.0,0.05004915]
[1723659821087,0.08414,59412.0,59411.0,0.0002525]
[1723659821392,0.33733499,59412.0,59411.0,0.0002525]
[1723659821576,0.84229499,59412.0,59411.0,0.0002525]
[1723659821888,1.24229499,59412.0,59411.0,0.0002525]
[1723659822077,1.32643499,59412.0,59411.0,0.0012525]
[1723659822284,1.32643499,59412.0,59411.0,0.0042525]
[1723659823188,1.49583499,59412.0,59411.0,0.0012525]
[1723659823994,1.49583499,59412.0,59411.0,1e-08]
[1723659824486,1.32755499,59412.0,59404.0,0.04979665]
[1723659824679,0.084151,59404.0,59397.0,0.04979665]
[1723659824880,0.084151,59404.0,59395.0,0.04983513]
[1723659824881,0.084163,59396.0,59395.0,0.04983513]
[1723659825081,0.6517,59398.0,59394.0,0.04983513]
[1723659825285,0.25391958,59396.0,59392.0,0.04984216]
[1723659825594,0.457961,59397.0,59390.0,0.0002525]
[1723659825595,0.08417,59391.0,59390.0,0.0002525]
[1723659825892,0.11145123,59391.0,59390.0,0.0844235]
[1723659826081,0.36429283,59391.0,59390.0,0.0844235]
[1723659826592,0.36429211,59391.0,59390.0,0.0844235]
[1723659826794,0.2528416,59391.0,59390.0,0.0844235]
[1723659827585,0.2528416,59391.0,59390.0,0.0924235]
[1723659827794,0.084169,59392.0,59390.0,0.0924235]
[1723659828191,0.084169,59392.0,59391.0,0.3608]
[1723659828486,0.18172612,59392.0,59391.0,0.3608]
[1723659828795,0.12518948,59392.0,59391.0,0.3608]
[1723659828994,0.3791021,59392.0,59391.0,0.3608]
[1723659829990,0.3791021,59392.0,59391.0,0.3618]
[1723659830195,0.3791021,59392.0,59391.0,0.44597]
[1723659830396,0.43562581,59392.0,59391.0,0.44597]
[1723659830595,0.37910374,59392.0,59391.0,0.44597]
[1723659830895,0.29493474,59392.0,59391.0,0.44597]
[1723659831488,0.26765383,59392.0,59391.0,0.44897]
[1723659831694,0.35144383,59392.0,59391.0,0.44897]
[1723659832088,0.26765383,59392.0,59391.0,0.44897]
[1723659832282,0.25391262,59392.0,59391.0,0.44897]
[1723659832486,0.20340051,59392.0,59391.0,0.66135658]
[1723659832687,0.20340051,59392.0,59391.0,0.93704108]
[1723659832895,0.0002525,59401.0,59391.0,0.93704108]
[1723659832896,0.25394405,59400.0,59398.0,0.084159]
[1723659833282,0.0002525,59401.0,59397.0,0.08299819]
[1723659833798,0.25295218,59399.0,59398.0,0.08416]
[1723659834396,0.0002525,59401.0,59398.0,0.003]
[1723659834593,0.25330966,59399.0,59398.0,0.08716]
[1723659834797,0.25330966,59399.0,59398.0,0.08816]
[1723659834993,0.25330966,59400.0,59399.0,0.084158]
[1723659835194,0.0002525,59401.0,59400.0,0.084157]
[1723659835592,0.25356043,59401.0,59400.0,0.084157]
[1723659835899,0.26784638,59401.0,59398.0,0.004]
[1723659836201,0.084158,59399.0,59398.0,0.08416]
[1723659836699,0.33761518,59399.0,59398.0,0.08416]
[1723659837290,0.33761518,59399.0,59398.0,0.15056412]
[1723659837601,0.33761518,59399.0,59398.0,0.08416]
[1723659838000,0.33761518,59399.0,59398.0,0.08516]
[1723659839403,0.084163,59396.0,59395.0,0.444964]
[1723659839802,0.33555366,59396.0,59395.0,0.3608]
[1723659840005,0.084165,59394.0,59393.0,0.16716519]